fUST/lending_fUST_20240610
["ID","MTS","AMOUNT","RATE_DAILY","PERIOD"]
[328950767,1718026251133,-500.0,0.00020987,2]
[328950769,1718026251143,-500.0,0.00020987,2]
[328950771,1718026251153,-500.0,0.00020987,2]
[328950773,1718026251164,-921.25,0.00020987,2]
[328950775,1718026251174,-500.0,0.00020987,2]
[328950777,1718026251186,-500.0,0.00020987,2]
[328950779,1718026251195,-895.34,0.00020987,2]
[328950781,1718026251206,-500.0,0.00020987,2]
[328950783,1718026251215,-500.0,0.00020987,2]
[328950786,1718026251227,-500.0,0.00020987,2]
[328950788,1718026251237,-941.85,0.00020987,2]
[328950790,1718026251247,-500.0,0.00020987,2]
[328950792,1718026251257,-500.0,0.00020987,2]
[328950794,1718026251267,-500.0,0.00020987,2]
[328950796,1718026251277,-648.58,0.00020987,2]
[328950798,1718026251286,-500.0,0.00020987,2]
[328950800,1718026251296,-500.0,0.00020991,2]
[328950802,1718026251305,-500.0,0.00020991,2]
[328950804,1718026251314,-500.0,0.00020991,2]
[328950805,1718026251323,-500.0,0.00020991,2]
[328950807,1718026251333,-500.0,0.00020991,2]
[328950810,1718026251343,-500.0,0.00020991,2]
[328950812,1718026251353,-600.0,0.00020992,2]
[328950814,1718026251364,-1000.0,0.00021,21]
[328950816,1718026251374,-3979.41598053,0.00021,2]
[328950818,1718026251384,-7318.47452839,0.00021,2]
[328950820,1718026251394,-471.08100537,0.00021,2]
[328950822,1718026251404,-600.0,0.0002108,2]
[328950824,1718026251414,-500.0,0.00021095,2]
[328950826,1718026251423,-600.0,0.00021162,2]
[328950828,1718026251434,-500.0,0.00021255,2]
[328950830,1718026251444,-509.62,0.00021255,2]
[328950832,1718026251453,-6598.21,0.00021255,2]
[328950834,1718026251463,-377.75,0.00021256,2]
[328950836,1718026251473,-500.0,0.00021256,2]
[328950838,1718026251482,-500.0,0.00021256,2]
[328950840,1718026251492,-659.0,0.00021256,2]
[328950842,1718026251502,-500.0,0.00021256,2]
[328950844,1718026251511,-500.0,0.00021256,2]
[328950846,1718026251521,-500.0,0.00021256,2]
[328950848,1718026251531,-2663.96,0.00021256,2]
[328950850,1718026251541,-500.0,0.00021256,2]
[328950852,1718026251551,-500.0,0.00021256,2]
[328950853,1718026251560,-500.0,0.00021256,2]
[328950854,1718026251570,-500.0,0.00021256,2]
[328950855,1718026251579,-500.0,0.00021256,2]
[328950856,1718026251590,-3718.58,0.00021256,2]
[328950857,1718026251600,-500.0,0.00021256,2]
[328950858,1718026251610,-500.0,0.00021257,2]
[328950859,1718026251620,-500.0,0.00021257,2]
[328950860,1718026251629,-500.0,0.00021257,2]
[328950861,1718026251639,-741.92,0.00021257,2]
[328950862,1718026251649,-500.0,0.00021257,2]
[328950863,1718026251661,-500.0,0.00021257,2]
[328950864,1718026251671,-500.0,0.00021257,2]
[328950866,1718026251681,-500.0,0.00021257,2]
[328950868,1718026251690,-500.0,0.00021257,2]
[328950870,1718026251701,-500.0,0.00021257,2]
[328950872,1718026251711,-500.0,0.00021257,2]
[328950874,1718026251722,-500.0,0.00021257,2]
[328950876,1718026251733,-500.0,0.00021257,2]
[328950878,1718026251743,-729.81,0.00021257,2]
[328950880,1718026251753,-500.0,0.00021257,2]
[328950882,1718026251763,-3443.84,0.00021257,2]
[328950884,1718026251772,-537.8,0.00021257,2]
[328950886,1718026251781,-407.05,0.00021257,2]
[328950888,1718026251791,-603.91,0.00021257,2]
[328950890,1718026251800,-500.0,0.00021257,2]
[328950892,1718026251811,-500.0,0.00021257,2]
[328950894,1718026251821,-500.0,0.00021257,2]
[328950895,1718026251832,-551.48,0.00021257,2]
[328950897,1718026251842,-840.1,0.00021257,2]
[328950899,1718026251851,-500.0,0.00021257,2]
[328950901,1718026251861,-500.0,0.00021257,2]
[328950903,1718026251871,-500.0,0.00021257,2]
[328950905,1718026251880,-500.0,0.00021257,2]
[328950907,1718026251890,-500.0,0.00021257,2]
[328950909,1718026251899,-500.0,0.00021257,2]
[328950911,1718026251909,-500.0,0.00021257,2]
[328950913,1718026251919,-500.0,0.00021257,2]
[328950915,1718026251930,-500.0,0.00021257,2]
[328950917,1718026251940,-500.0,0.00021257,2]
[328950919,1718026251950,-500.0,0.00021257,2]
[328950921,1718026251960,-500.0,0.00021257,2]
[328950923,1718026251970,-3027.86,0.00021257,2]
[328950925,1718026251980,-500.0,0.00021257,2]
[328950927,1718026251990,-3067.73,0.00021257,2]
[328950929,1718026252000,-500.0,0.00021257,2]
[328950931,1718026252011,-500.0,0.00021257,2]
[328950933,1718026252020,-500.0,0.00021257,2]
[328950935,1718026252030,-733.16,0.00021257,2]
[328950937,1718026252040,-500.0,0.00021257,2]
[328950939,1718026252050,-6888.29,0.00021257,2]
[328950941,1718026252061,-746.04,0.00021257,2]
[328950943,1718026252071,-500.0,0.00021257,2]
[328950951,1718026252139,-500.0,0.00021257,2]
[328950954,1718026252150,-500.0,0.0002126,2]
[328950956,1718026252161,-348.23368899,0.0002126,2]
[328950958,1718026252171,-500.0,0.0002126,2]
[328950960,1718026252182,-579.18,0.0002126,2]
[328950962,1718026252191,-500.0,0.0002126,2]
[328950964,1718026252202,-500.0,0.0002126,2]
[328950966,1718026252211,-500.0,0.0002126,2]
[328950968,1718026252221,-500.0,0.0002126,2]
[328950970,1718026252231,-500.0,0.0002126,2]
[328950972,1718026252242,-500.0,0.0002126,2]
[328950974,1718026252252,-500.0,0.0002126,2]
[328950976,1718026252261,-500.0,0.0002126,2]
[328950978,1718026252271,-535.18,0.0002126,2]
[328950980,1718026252281,-152.32430789,0.0002126,2]
[328950982,1718026252290,-500.0,0.0002126,2]
[328950984,1718026252301,-500.0,0.0002126,2]
[328950986,1718026252310,-500.0,0.0002126,2]
[328950988,1718026252320,-356.77295196,0.0002126,2]
[328950990,1718026252329,-500.0,0.0002126,2]
[328950992,1718026252339,-500.0,0.0002126,2]
[328950994,1718026252349,-500.0,0.0002126,2]
[328950996,1718026252358,-500.0,0.0002126,2]
[328950998,1718026252367,-500.0,0.0002126,2]
[328951000,1718026252377,-500.0,0.0002126,2]
[328951002,1718026252387,-500.0,0.0002126,2]
[328951004,1718026252398,-500.0,0.0002126,2]
[328951006,1718026252408,-500.0,0.0002126,2]
[328951008,1718026252417,-500.0,0.0002126,2]
[328951010,1718026252427,-500.0,0.0002126,2]
[328951012,1718026252439,-796.12,0.0002126,2]
[328951014,1718026252448,-2285.21,0.0002126,2]
[328951016,1718026252458,-500.0,0.0002126,2]
[328951018,1718026252467,-500.0,0.0002126,2]
[328951020,1718026252477,-536.13,0.0002126,2]
[328951022,1718026252486,-500.0,0.0002126,2]
[328951024,1718026252495,-500.0,0.0002126,2]
[328951026,1718026252506,-500.0,0.0002126,2]
[328951028,1718026252516,-1059.01,0.0002126,2]
[328951030,1718026252526,-500.0,0.0002126,2]
[328951032,1718026252537,-6188.56,0.0002126,2]
[328951034,1718026252547,-500.0,0.0002126,2]
[328951036,1718026252556,-500.0,0.0002126,2]
[328951038,1718026252566,-500.0,0.0002126,2]
[328951040,1718026252577,-558.09172296,0.0002126,2]
[328951041,1718026252586,-500.0,0.0002126,2]
[328951042,1718026252595,-500.0,0.0002126,2]
[328951043,1718026252605,-1215.43,0.0002126,2]
[328951044,1718026252615,-500.0,0.00021261,2]
[328951045,1718026252624,-458.29298178,0.00021261,2]
[328951046,1718026252633,-500.0,0.00021261,2]
[328951047,1718026252643,-500.0,0.00021261,2]
[328951048,1718026252657,-500.0,0.00021261,2]
[328951049,1718026252666,-500.0,0.00021261,2]
[328951050,1718026252677,-500.0,0.00021261,2]
[328951051,1718026252688,-500.0,0.00021261,2]
[328951052,1718026252699,-921.25,0.00021261,2]
[328951053,1718026252709,-500.0,0.00021261,2]
[328951054,1718026252718,-500.0,0.00021261,2]
[328951055,1718026252727,-895.34,0.00021261,2]
[328951056,1718026252737,-500.0,0.00021261,2]
[328951057,1718026252747,-500.0,0.00021261,2]
[328951058,1718026252756,-500.0,0.00021261,2]
[328951059,1718026252765,-941.85,0.00021261,2]
[328951060,1718026252774,-310.1319722,0.00021261,2]
[328951061,1718026252783,-500.0,0.00021261,2]
[328951062,1718026252792,-500.0,0.00021261,2]
[328951063,1718026252801,-648.58,0.00021261,2]
[328951064,1718026252811,-500.0,0.00021261,2]
[328951065,1718026252820,-500.0,0.00021265,2]
[328951066,1718026252830,-554.7739449,0.00021265,2]
[328951067,1718026252839,-500.0,0.00021265,2]
[328951068,1718026252849,-500.0,0.00021265,2]
[328951069,1718026252858,-500.0,0.00021265,2]
[328951070,1718026252867,-500.0,0.00021265,2]
[328951071,1718026252877,-500.0,0.00021369,2]
[328951072,1718026252887,-509.62,0.00021529,2]
[328951073,1718026252897,-6598.21,0.00021529,2]
[328951074,1718026252906,-500.0,0.0002153,2]
[328951075,1718026252915,-500.0,0.0002153,2]
[328951076,1718026252925,-659.0,0.0002153,2]
[328951077,1718026252935,-500.0,0.0002153,2]
[328951078,1718026252944,-500.0,0.0002153,2]
[328951079,1718026252953,-500.0,0.0002153,2]
[328951080,1718026252963,-2663.96,0.0002153,2]
[328951082,1718026252972,-500.0,0.0002153,2]
[328951084,1718026252982,-3718.58,0.0002153,2]
[328951086,1718026252991,-500.0,0.0002153,2]
[328951088,1718026253002,-500.0,0.00021531,2]
[328951090,1718026253013,-500.0,0.00021531,2]
[328951092,1718026253022,-500.0,0.00021531,2]
[328951093,1718026253034,-741.92,0.00021531,2]
[328951094,1718026253044,-500.0,0.00021531,2]
[328951095,1718026253054,-500.0,0.00021531,2]
[328951096,1718026253064,-500.0,0.00021531,2]
[328951097,1718026253073,-500.0,0.00021531,2]
[328951099,1718026253083,-500.0,0.00021531,2]
[328951101,1718026253092,-463.17761274,0.00021531,2]
[328951103,1718026253103,-500.0,0.00021531,2]
[328951105,1718026253112,-500.0,0.00021531,2]
[328951107,1718026253122,-500.0,0.00021531,2]
[328951109,1718026253131,-729.81,0.00021531,2]
[328951111,1718026253141,-500.0,0.00021531,2]
[328951113,1718026253150,-537.8,0.00021531,2]
[328951115,1718026253159,-3443.84,0.00021531,2]
[328951117,1718026253169,-603.91,0.00021531,2]
[328951119,1718026253179,-500.0,0.00021531,2]
[328951121,1718026253188,-500.0,0.00021531,2]
[328951122,1718026253198,-500.0,0.00021531,2]
[328951124,1718026253207,-551.48,0.00021531,2]
[328951126,1718026253217,-840.1,0.00021531,2]
[328951135,1718026253285,-500.0,0.00021531,2]
[328951137,1718026253295,-500.0,0.00021531,2]
[328951139,1718026253305,-500.0,0.00021531,2]
[328951141,1718026253315,-500.0,0.00021531,2]
[328951143,1718026253325,-500.0,0.00021531,2]
[328951145,1718026253335,-500.0,0.00021531,2]
[328951147,1718026253344,-500.0,0.00021531,2]
[328951149,1718026253354,-500.0,0.00021531,2]
[328951151,1718026253364,-500.0,0.00021531,2]
[328951153,1718026253373,-500.0,0.00021531,2]
[328951155,1718026253382,-500.0,0.00021531,2]
[328951157,1718026253391,-500.0,0.00021531,2]
[328951159,1718026253400,-3027.86,0.00021531,2]
[328951161,1718026253409,-500.0,0.00021531,2]
[328951163,1718026253418,-3067.73,0.00021531,2]
[328951165,1718026253428,-500.0,0.00021531,2]
[328951167,1718026253437,-500.0,0.00021531,2]
[328951168,1718026253447,-733.16,0.00021531,2]
[328951169,1718026253456,-500.0,0.00021531,2]
[328951171,1718026253465,-6888.29,0.00021531,2]
[328951173,1718026253475,-746.04,0.00021531,2]
[328951175,1718026253485,-500.0,0.00021531,2]
[328951177,1718026253495,-500.0,0.00021531,2]
[328951179,1718026253504,-500.0,0.00021534,2]
[328951181,1718026253514,-500.0,0.00021534,2]
[328951183,1718026253524,-579.18,0.00021534,2]
[328951185,1718026253534,-500.0,0.00021534,2]
[328951187,1718026253543,-261.12908118,0.00021534,2]
[328951189,1718026253553,-500.0,0.00021534,2]
[328951191,1718026253562,-484.40192052,0.00021534,2]
[328951193,1718026253572,-500.0,0.00021534,2]
[328951194,1718026253581,-500.0,0.00021534,2]
[328951195,1718026253591,-500.0,0.00021534,2]
[328951196,1718026253602,-500.0,0.00021534,2]
[328951197,1718026253611,-500.0,0.00021534,2]
[328951198,1718026253621,-500.0,0.00021534,2]
[328951199,1718026253631,-500.0,0.00021534,2]
[328951200,1718026253641,-500.0,0.00021534,2]
[328951201,1718026253653,-500.0,0.00021534,2]
[328951202,1718026253664,-500.0,0.00021534,2]
[328951203,1718026253674,-500.0,0.00021534,2]
[328951204,1718026253685,-500.0,0.00021534,2]
[328951205,1718026253695,-500.0,0.00021534,2]
[328951206,1718026253706,-383.51956065,0.00021534,2]
[328951207,1718026253715,-506.58,0.00021534,2]
[328951208,1718026253725,-500.0,0.00021534,2]
[328951209,1718026253738,-500.0,0.00021534,2]
[328951211,1718026253750,-500.0,0.00021534,2]
[328951213,1718026253760,-796.12,0.00021534,2]
[328951215,1718026253770,-2285.21,0.00021534,2]
[328951216,1718026253780,-500.0,0.00021534,2]
[328951217,1718026253789,-500.0,0.00021534,2]
[328951218,1718026253799,-536.13,0.00021534,2]
[328951219,1718026253809,-500.0,0.00021534,2]
[328951220,1718026253819,-641.56348286,0.00021534,2]
[328951221,1718026253829,-500.0,0.00021534,2]
[328951222,1718026253839,-1059.01,0.00021534,2]
[328951223,1718026253850,-500.0,0.00021534,2]
[328951224,1718026253860,-6188.56,0.00021534,2]
[328951225,1718026253870,-500.0,0.00021534,2]
[328951226,1718026253879,-500.0,0.00021534,2]
[328951227,1718026253889,-500.0,0.00021534,2]
[328951229,1718026253899,-500.0,0.00021534,2]
[328951230,1718026253909,-500.0,0.00021534,2]
[328951232,1718026253919,-1215.43,0.00021534,2]
[328951234,1718026253930,-500.0,0.00021535,2]
[328951236,1718026253940,-500.0,0.00021535,2]
[328951238,1718026253950,-446.88,0.00021535,2]
[328951240,1718026253960,-500.0,0.00021535,2]
[328951242,1718026253970,-500.0,0.00021535,2]
[328951243,1718026253980,-616.09,0.00021535,2]
[328951245,1718026253990,-921.25,0.00021535,2]
[328951247,1718026253999,-500.0,0.00021535,2]
[328951248,1718026254009,-500.0,0.00021535,2]
[328951249,1718026254019,-895.34,0.00021535,2]
[328951250,1718026254029,-500.0,0.00021535,2]
[328951252,1718026254039,-343.7965023,0.00021535,2]
[328951254,1718026254049,-500.0,0.00021535,2]
[328951255,1718026254060,-941.85,0.00021535,2]
[328951256,1718026254070,-500.0,0.00021535,2]
[328951257,1718026254081,-500.0,0.00021535,2]
[328951258,1718026254091,-648.58,0.00021535,2]
[328951259,1718026254101,-500.0,0.00021535,2]
[328951260,1718026254111,-500.0,0.00021539,2]
[328951261,1718026254121,-500.0,0.00021539,2]
[328951262,1718026254130,-500.0,0.00021539,2]
[328951264,1718026254141,-500.0,0.00021539,2]
[328951266,1718026254151,-500.0,0.00021539,2]
[328951269,1718026254161,-500.0,0.00021643,2]
[328951270,1718026254171,-509.62,0.00021803,2]
[328951272,1718026254181,-6598.21,0.00021803,2]
[328951274,1718026254191,-500.0,0.00021804,2]
[328951276,1718026254200,-500.0,0.00021804,2]
[328951278,1718026254210,-659.0,0.00021804,2]
[328951280,1718026254220,-500.0,0.00021804,2]
[328951281,1718026254229,-500.0,0.00021804,2]
[328951282,1718026254239,-500.0,0.00021804,2]
[328951283,1718026254248,-2663.96,0.00021804,2]
[328951284,1718026254257,-500.0,0.00021804,2]
[328951285,1718026254267,-3718.58,0.00021804,2]
[328951286,1718026254277,-500.0,0.00021804,2]
[328951287,1718026254286,-500.0,0.00021805,2]
[328951288,1718026254352,-500.0,0.00021805,2]
[328951289,1718026254362,-239.40728344,0.00021805,2]
[328951290,1718026254371,-741.92,0.00021805,2]
[328951291,1718026254381,-500.0,0.00021805,2]
[328951292,1718026254391,-500.0,0.00021805,2]
[328951293,1718026254402,-500.0,0.00021805,2]
[328951294,1718026254412,-500.0,0.00021805,2]
[328951295,1718026254423,-500.0,0.00021805,2]
[328951296,1718026254433,-247.73006924,0.00021805,2]
[328951297,1718026254443,-500.0,0.00021805,2]
[328951298,1718026254452,-500.0,0.00021805,2]
[328951299,1718026254462,-729.81,0.00021805,2]
[328951300,1718026254472,-500.0,0.00021805,2]
[328951301,1718026254482,-537.8,0.00021805,2]
[328951302,1718026254492,-3443.84,0.00021805,2]
[328951303,1718026254503,-603.91,0.00021805,2]
[328951304,1718026254513,-500.0,0.00021805,2]
[328951305,1718026254523,-500.0,0.00021805,2]
[328951306,1718026254533,-500.0,0.00021805,2]
[328951307,1718026254543,-551.48,0.00021805,2]
[328951308,1718026254553,-840.1,0.00021805,2]
[328951309,1718026254564,-287.07,0.00021805,2]
[328951310,1718026254575,-500.0,0.00021805,2]
[328951311,1718026254585,-500.0,0.00021805,2]
[328951312,1718026254595,-500.0,0.00021805,2]
[328951313,1718026254605,-500.0,0.00021805,2]
[328951314,1718026254615,-500.0,0.00021805,2]
[328951315,1718026254625,-500.0,0.00021805,2]
[328951316,1718026254634,-500.0,0.00021805,2]
[328951317,1718026254645,-500.0,0.00021805,2]
[328951318,1718026254655,-3027.86,0.00021805,2]
[328951319,1718026254669,-500.0,0.00021805,2]
[328951320,1718026254680,-3067.73,0.00021805,2]
[328951321,1718026254691,-500.0,0.00021805,2]
[328951322,1718026254702,-462.86615712,0.00021805,2]
[328951323,1718026254712,-733.16,0.00021805,2]
[328951324,1718026254724,-6888.29,0.00021805,2]
[328951325,1718026254734,-746.04,0.00021805,2]
[328951326,1718026254747,-339.63743128,0.00021808,2]
[328951327,1718026254758,-500.0,0.00021808,2]
[328951328,1718026254769,-579.18,0.00021808,2]
[328951329,1718026254779,-500.0,0.00021808,2]
[328951330,1718026254790,-500.0,0.00021808,2]
[328951331,1718026254800,-500.0,0.00021808,2]
[328951332,1718026254810,-500.0,0.00021808,2]
[328951333,1718026254820,-500.0,0.00021808,2]
[328951334,1718026254830,-500.0,0.00021808,2]
[328951335,1718026254854,-500.0,0.00021808,2]
[328951336,1718026254872,-500.0,0.00021808,2]
[328951337,1718026254895,-500.0,0.00021808,2]
[328951338,1718026254916,-500.0,0.00021808,2]
[328951339,1718026254941,-500.0,0.00021808,2]
[328951340,1718026254957,-500.0,0.00021808,2]
[328951341,1718026254978,-500.0,0.00021808,2]
[328951342,1718026254993,-500.0,0.00021808,2]
[328951343,1718026255009,-500.0,0.00021808,2]
[328951344,1718026255030,-500.0,0.00021808,2]
[328951345,1718026255053,-796.12,0.00021808,2]
[328951346,1718026255071,-2285.21,0.00021808,2]
[328951347,1718026255084,-500.0,0.00021808,2]
[328951348,1718026255103,-500.0,0.00021808,2]
[328951349,1718026255121,-536.13,0.00021808,2]
[328951350,1718026255139,-500.0,0.00021808,2]
[328951351,1718026255153,-500.0,0.00021808,2]
[328951352,1718026255169,-1059.01,0.00021808,2]
[328951353,1718026255186,-500.0,0.00021808,2]
[328951354,1718026255201,-6188.56,0.00021808,2]
[328951355,1718026255215,-500.0,0.00021808,2]
[328951356,1718026255230,-500.0,0.00021808,2]
[328951357,1718026255244,-500.0,0.00021808,2]
[328951358,1718026255258,-500.0,0.00021808,2]
[328951359,1718026255272,-500.0,0.00021808,2]
[328951360,1718026255287,-1215.43,0.00021808,2]
[328951361,1718026255302,-500.0,0.00021809,2]
[328951362,1718026255317,-202.24,0.00021809,2]
[328951363,1718026255332,-500.0,0.00021809,2]
[328951364,1718026255346,-500.0,0.00021809,2]
[328951365,1718026255361,-921.25,0.00021809,2]
[328951366,1718026255376,-500.0,0.00021809,2]
[328951367,1718026255392,-500.0,0.00021809,2]
[328951368,1718026255407,-895.34,0.00021809,2]
[328951369,1718026255422,-500.0,0.00021809,2]
[328951370,1718026255438,-500.0,0.00021809,2]
[328951371,1718026255454,-941.85,0.00021809,2]
[328951372,1718026255470,-500.0,0.00021809,2]
[328951373,1718026255487,-500.0,0.00021809,2]
[328951374,1718026255503,-648.58,0.00021809,2]
[328951375,1718026255518,-500.0,0.00021809,2]
[328951376,1718026255533,-500.0,0.00021813,2]
[328951377,1718026255549,-500.0,0.00021813,2]
[328951378,1718026255565,-500.0,0.00021813,2]
[328951379,1718026255580,-500.0,0.00021813,2]
[328951380,1718026255596,-500.0,0.00021813,2]
[328951381,1718026255699,-200.0,0.00021917,2]
[328951382,1718026255717,-200.0,0.00021917,2]
[328951383,1718026255727,-200.0,0.00021917,2]
[328951384,1718026255739,-200.0,0.00021917,2]
[328951385,1718026255751,-200.0,0.00021917,2]
[328951386,1718026255761,-200.0,0.00021917,2]
[328951387,1718026255772,-200.0,0.00021917,2]
[328951388,1718026255783,-200.0,0.00021917,2]
[328951389,1718026255793,-500.0,0.00021917,2]
[328951390,1718026255802,-166.666666,0.00021918,2]
[328951391,1718026255812,-1000.0,0.00022,22]
[328951392,1718026255822,-600.0,0.00022016,3]
[328951393,1718026255832,-600.0,0.00022016,3]
[328951394,1718026255842,-509.62,0.00022077,2]
[328951395,1718026255852,-6598.21,0.00022077,2]
[328951396,1718026255864,-500.0,0.00022078,2]
[328951397,1718026255874,-500.0,0.00022078,2]
[328951398,1718026255884,-659.0,0.00022078,2]
[328951399,1718026255894,-500.0,0.00022078,2]
[328951400,1718026255904,-500.0,0.00022078,2]
[328951401,1718026255914,-500.0,0.00022078,2]
[328951402,1718026255924,-2663.96,0.00022078,2]
[328951403,1718026255935,-500.0,0.00022078,2]
[328951404,1718026255945,-3718.58,0.00022078,2]
[328951405,1718026255955,-500.0,0.00022078,2]
[328951406,1718026255965,-500.0,0.00022079,2]
[328951407,1718026255975,-500.0,0.00022079,2]
[328951408,1718026255985,-741.92,0.00022079,2]
[328951409,1718026255995,-500.0,0.00022079,2]
[328951410,1718026256005,-500.0,0.00022079,2]
[328951411,1718026256015,-500.0,0.00022079,2]
[328951412,1718026256027,-500.0,0.00022079,2]
[328951413,1718026256038,-500.0,0.00022079,2]
[328951414,1718026256048,-500.0,0.00022079,2]
[328951415,1718026256058,-500.0,0.00022079,2]
[328951416,1718026256068,-729.81,0.00022079,2]
[328951417,1718026256078,-500.0,0.00022079,2]
[328951418,1718026256087,-537.8,0.00022079,2]
[328951419,1718026256097,-3443.84,0.00022079,2]
[328951420,1718026256106,-603.91,0.00022079,2]
[328951421,1718026256116,-500.0,0.00022079,2]
[328951422,1718026256126,-500.0,0.00022079,2]
[328951423,1718026256136,-500.0,0.00022079,2]
[328951424,1718026256146,-551.48,0.00022079,2]
[328951425,1718026256157,-840.1,0.00022079,2]
[328951426,1718026256167,-500.0,0.00022079,2]
[328951427,1718026256177,-500.0,0.00022079,2]
[328951428,1718026256189,-500.0,0.00022079,2]
[328951429,1718026256199,-500.0,0.00022079,2]
[328951430,1718026256209,-500.0,0.00022079,2]
[328951431,1718026256219,-500.0,0.00022079,2]
[328951432,1718026256229,-3027.86,0.00022079,2]
[328951433,1718026256239,-500.0,0.00022079,2]
[328951434,1718026256250,-3067.73,0.00022079,2]
[328951435,1718026256259,-500.0,0.00022079,2]
[328951436,1718026256269,-733.16,0.00022079,2]
[328951437,1718026256279,-6888.29,0.00022079,2]
[328951438,1718026256290,-746.04,0.00022079,2]
[328951439,1718026256300,-500.0,0.00022082,2]
[328951440,1718026256310,-579.18,0.00022082,2]
[328951441,1718026256320,-200.0,0.00022082,2]
[328951442,1718026256330,-500.0,0.00022082,2]
[328951443,1718026256340,-500.0,0.00022082,2]
[328951444,1718026256349,-500.0,0.00022082,2]
[328951445,1718026256359,-500.0,0.00022082,2]
[328951446,1718026256369,-500.0,0.00022082,2]
[328951447,1718026256378,-500.0,0.00022082,2]
[328951448,1718026256389,-500.0,0.00022082,2]
[328951449,1718026256398,-500.0,0.00022082,2]
[328951450,1718026256409,-500.0,0.00022082,2]
[328951451,1718026256419,-305.07,0.00022082,2]
[328951452,1718026256429,-796.12,0.00022082,2]
[328951453,1718026256444,-2285.21,0.00022082,2]
[328951454,1718026256453,-500.0,0.00022082,2]
[328951455,1718026256464,-500.0,0.00022082,2]
[328951456,1718026256474,-536.13,0.00022082,2]
[328951457,1718026256485,-500.0,0.00022082,2]
[328951458,1718026256495,-500.0,0.00022082,2]
[328951459,1718026256505,-1059.01,0.00022082,2]
[328951460,1718026256516,-500.0,0.00022082,2]
[328951461,1718026256526,-6188.56,0.00022082,2]
[328951462,1718026256538,-500.0,0.00022082,2]
[328951463,1718026256548,-500.0,0.00022082,2]
[328951464,1718026256558,-500.0,0.00022082,2]
[328951465,1718026256569,-500.0,0.00022082,2]
[328951466,1718026256579,-500.0,0.00022082,2]
[328951467,1718026256590,-1215.43,0.00022082,2]
[328951468,1718026256600,-500.0,0.00022083,2]
[328951469,1718026256611,-500.0,0.00022083,2]
[328951470,1718026256621,-500.0,0.00022083,2]
[328951471,1718026256631,-921.25,0.00022083,2]
[328951472,1718026256642,-500.0,0.00022083,2]
[328951473,1718026256653,-500.0,0.00022083,2]
[328951474,1718026256667,-895.34,0.00022083,2]
[328951475,1718026256678,-500.0,0.00022083,2]
[328951476,1718026256691,-500.0,0.00022083,2]
[328951477,1718026256701,-941.85,0.00022083,2]
[328951478,1718026256714,-500.0,0.00022083,2]
[328951479,1718026256724,-500.0,0.00022083,2]